[Event "Titled Tuesday Blitz June 07 Early 2022"]
[White "Lagno, Kateryna"]
[Black "Richter, Nils"]
[WhiteFideId "14109336"]
[BlackFideId "12990809"]
[WhiteElo "2522"]
[BlackElo "2311"]
[Result "1/2-1/2"]
[Round "11"]
[TimeControl "180+1"]
[Date "2022.06.07"]
[WhiteClock "0:00:21"]
[BlackClock "0:00:20"]

1. e4 {[%clk 0:03:00]}  c5 {[%clk 0:02:59]} 2. Nf3 {[%clk 0:03:01]}  d6 {[%clk 0:02:59]} 3. d4 {[%clk 0:03:01]}  cxd4 {[%clk 0:03:00]} 4. Nxd4 {[%clk 0:03:01]}  Nf6 {[%clk 0:03:01]} 5. Nc3 {[%clk 0:03:01]}  a6 {[%clk 0:03:01]} 6. Be2 {[%clk 0:03:01]}  e5 {[%clk 0:03:01]} 7. Nb3 {[%clk 0:03:00]}  Be6 {[%clk 0:03:00]} 8. Be3 {[%clk 0:02:59]}  Be7 {[%clk 0:03:01]} 9. Nd5 {[%clk 0:02:35]}  Bxd5 {[%clk 0:02:56]} 10. exd5 {[%clk 0:02:35]}  Nbd7 {[%clk 0:02:57]} 11. O-O {[%clk 0:02:31]}  O-O {[%clk 0:02:55]} 12. Qd3 {[%clk 0:02:11]}  Rc8 {[%clk 0:02:54]} 13. Rac1 {[%clk 0:02:06]}  Qc7 {[%clk 0:02:46]} 14. Bd2 {[%clk 0:01:57]}  b6 {[%clk 0:02:18]} 15. Qxa6 {[%clk 0:01:50]}  Nxd5 {[%clk 0:02:11]} 16. Bf3 {[%clk 0:01:45]}  N5f6 {[%clk 0:02:09]} 17. Qb7 {[%clk 0:01:40]}  Qd8 {[%clk 0:02:05]} 18. c4 {[%clk 0:01:25]}  e4 {[%clk 0:02:03]} 19. Be2 {[%clk 0:01:22]}  Nc5 {[%clk 0:02:00]} 20. Nxc5 {[%clk 0:01:19]}  bxc5 {[%clk 0:02:00]} 21. Bc3 {[%clk 0:01:09]}  Rb8 {[%clk 0:01:58]} 22. Qc6 {[%clk 0:01:08]}  Rb6 {[%clk 0:01:56]} 23. Qa4 {[%clk 0:01:07]}  Nd7 {[%clk 0:01:56]} 24. Ba5 {[%clk 0:01:07]}  Bg5 {[%clk 0:01:32]} 25. Rc2 {[%clk 0:00:51]}  Qa8 {[%clk 0:01:29]} 26. Qxd7 {[%clk 0:00:49]}  Qxa5 {[%clk 0:01:28]} 27. Qf5 {[%clk 0:00:50]}  Bf6 {[%clk 0:01:25]} 28. b3 {[%clk 0:00:48]}  Re8 {[%clk 0:01:19]} 29. Rd1 {[%clk 0:00:48]}  Qa8 {[%clk 0:01:17]} 30. g3 {[%clk 0:00:48]}  e3 {[%clk 0:01:16]} 31. f4 {[%clk 0:00:44]}  Ra6 {[%clk 0:01:10]} 32. Bd3 {[%clk 0:00:42]}  Rxa2 {[%clk 0:00:51]} 33. Qxh7+ {[%clk 0:00:40]}  Kf8 {[%clk 0:00:52]} 34. Be2 {[%clk 0:00:30]}  Rxc2 {[%clk 0:00:48]} 35. Qxc2 {[%clk 0:00:31]}  Bd4 {[%clk 0:00:47]} 36. Qh7 {[%clk 0:00:23]}  Qa2 {[%clk 0:00:39]} 37. Kf1 {[%clk 0:00:23]}  Qxb3 {[%clk 0:00:35]} 38. Rb1 {[%clk 0:00:23]}  Bb2 {[%clk 0:00:15]} 39. Qh8+ {[%clk 0:00:16]}  Ke7 {[%clk 0:00:16]} 40. Qxg7 {[%clk 0:00:15]}  Bxg7 {[%clk 0:00:16]} 41. Rxb3 {[%clk 0:00:15]}  Bd4 {[%clk 0:00:15]} 42. Kg2 {[%clk 0:00:15]}  Ra8 {[%clk 0:00:14]} 43. Kf3 {[%clk 0:00:15]}  Ra7 {[%clk 0:00:14]} 44. h4 {[%clk 0:00:15]}  Kf6 {[%clk 0:00:14]} 45. g4 {[%clk 0:00:14]}  Ra1 {[%clk 0:00:14]} 46. h5 {[%clk 0:00:14]}  Rh1 {[%clk 0:00:13]} 47. g5+ {[%clk 0:00:12]}  Kf5 {[%clk 0:00:12]} 48. Bd3+ {[%clk 0:00:12]}  Ke6 {[%clk 0:00:13]} 49. Rb8 {[%clk 0:00:11]}  Rxh5 {[%clk 0:00:10]} 50. Re8+ {[%clk 0:00:10]}  Kd7 {[%clk 0:00:10]} 51. Rf8 {[%clk 0:00:09]}  Ke7 {[%clk 0:00:09]} 52. Rb8 {[%clk 0:00:09]}  Rh2 {[%clk 0:00:09]} 53. Rb7+ {[%clk 0:00:07]}  Kf8 {[%clk 0:00:09]} 54. Rb1 {[%clk 0:00:04]}  Rf2+ {[%clk 0:00:09]} 55. Ke4 {[%clk 0:00:04]}  Kg7 {[%clk 0:00:05]} 56. Re1 {[%clk 0:00:04]}  Rd2 {[%clk 0:00:04]} 57. Re2 {[%clk 0:00:04]}  Rd1 {[%clk 0:00:04]} 58. Rh2 {[%clk 0:00:04]}  Rg1 {[%clk 0:00:03]} 59. Be2 {[%clk 0:00:03]}  Rg3 {[%clk 0:00:03]} 60. Kf5 {[%clk 0:00:04]}  f6 {[%clk 0:00:03]} 61. gxf6+ {[%clk 0:00:04]}  Bxf6 {[%clk 0:00:04]} 62. Ke6 {[%clk 0:00:04]}  Bd4 {[%clk 0:00:04]} 63. f5 {[%clk 0:00:04]}  Rg5 {[%clk 0:00:03]} 64. Rh3 {[%clk 0:00:04]}  Rg1 {[%clk 0:00:03]} 65. Rh2 {[%clk 0:00:04]}  Kf8 {[%clk 0:00:02]} 66. Kxd6 {[%clk 0:00:04]}  Kf7 {[%clk 0:00:02]} 67. Kd5 {[%clk 0:00:04]}  Kf6 {[%clk 0:00:02]} 68. Ke4 {[%clk 0:00:05]}  Rg5 {[%clk 0:00:02]} 69. Rh6+ {[%clk 0:00:04]}  Kg7 {[%clk 0:00:02]} 70. Rh2 {[%clk 0:00:05]}  Kf7 {[%clk 0:00:02]} 71. Kf3 {[%clk 0:00:04]}  Rg1 {[%clk 0:00:02]} 72. Ke4 {[%clk 0:00:05]}  Kf6 {[%clk 0:00:02]} 73. Rh6+ {[%clk 0:00:04]}  Kg7 {[%clk 0:00:02]} 74. Rg6+ {[%clk 0:00:04]}  Rxg6 {[%clk 0:00:03]} 75. fxg6 {[%clk 0:00:05]}  Kxg6 {[%clk 0:00:04]} 76. Kd3 {[%clk 0:00:06]}  Kg5 {[%clk 0:00:04]} 77. Ke4 {[%clk 0:00:06]}  Kh4 {[%clk 0:00:05]} 78. Kf3 {[%clk 0:00:07]}  Kg5 {[%clk 0:00:05]} 79. Bd3 {[%clk 0:00:07]}  Kf6 {[%clk 0:00:06]} 80. Be2 {[%clk 0:00:08]}  Ke7 {[%clk 0:00:07]} 81. Bd3 {[%clk 0:00:09]}  Kd7 {[%clk 0:00:08]} 82. Be2 {[%clk 0:00:10]}  Kc7 {[%clk 0:00:09]} 83. Bd3 {[%clk 0:00:11]}  Kb6 {[%clk 0:00:10]} 84. Be2 {[%clk 0:00:11]}  Ka6 {[%clk 0:00:11]} 85. Bd3 {[%clk 0:00:12]}  Ka5 {[%clk 0:00:12]} 86. Be2 {[%clk 0:00:13]}  Kb4 {[%clk 0:00:13]} 87. Ke4 {[%clk 0:00:13]}  Kc3 {[%clk 0:00:14]} 88. Kf3 {[%clk 0:00:12]}  Kd2 {[%clk 0:00:14]} 89. Bf1 {[%clk 0:00:12]}  Ke1 {[%clk 0:00:14]} 90. Be2 {[%clk 0:00:13]}  Kd2 {[%clk 0:00:13]} 91. Bf1 {[%clk 0:00:13]}  Kd1 {[%clk 0:00:14]} 92. Be2+ {[%clk 0:00:14]}  Ke1 {[%clk 0:00:14]} 93. Bd3 {[%clk 0:00:14]}  Kd2 {[%clk 0:00:08]} 94. Be2 {[%clk 0:00:14]}  Kc3 {[%clk 0:00:09]} 95. Ke4 {[%clk 0:00:14]}  Kb4 {[%clk 0:00:10]} 96. Kf3 {[%clk 0:00:15]}  Ka5 {[%clk 0:00:11]} 97. Ke4 {[%clk 0:00:15]}  Kb6 {[%clk 0:00:12]} 98. Kf3 {[%clk 0:00:16]}  Kc7 {[%clk 0:00:13]} 99. Ke4 {[%clk 0:00:16]}  Kd8 {[%clk 0:00:13]} 100. Kf3 {[%clk 0:00:17]}  Ke7 {[%clk 0:00:14]} 101. Ke4 {[%clk 0:00:18]}  Kf6 {[%clk 0:00:15]} 102. Kf3 {[%clk 0:00:18]}  Kg5 {[%clk 0:00:16]} 103. Bd3 {[%clk 0:00:18]}  Kh4 {[%clk 0:00:17]} 104. Be2 {[%clk 0:00:19]}  Kh3 {[%clk 0:00:18]} 105. Bd3 {[%clk 0:00:19]}  Kh2 {[%clk 0:00:18]} 106. Be2 {[%clk 0:00:19]}  Kh3 {[%clk 0:00:19]} 107. Bd3 {[%clk 0:00:20]}  Kh4 {[%clk 0:00:20]} 108. Be2 {[%clk 0:00:21]} 1/2-1/2


[Site "https://www.chess.com"]

[Event "Titled Tuesday Blitz June 07 Early 2022"]
[White "Lazavik, Denis"]
[Black "Dubov, Daniil"]
[WhiteFideId "13515110"]
[BlackFideId "24126055"]
[WhiteElo "2437"]
[BlackElo "2791"]
[Result "1/2-1/2"]
[Round "11"]
[TimeControl "180+1"]
[Date "2022.06.07"]
[WhiteClock "0:00:04"]
[BlackClock "0:00:03"]

1. d4 {[%clk 0:03:00]}  Nf6 {[%clk 0:02:59]} 2. c4 {[%clk 0:03:01]}  e6 {[%clk 0:02:58]} 3. Nf3 {[%clk 0:03:01]}  d5 {[%clk 0:02:59]} 4. Nc3 {[%clk 0:03:01]}  c6 {[%clk 0:02:58]} 5. e3 {[%clk 0:02:59]}  Nbd7 {[%clk 0:02:58]} 6. Qc2 {[%clk 0:03:00]}  Bd6 {[%clk 0:02:57]} 7. b3 {[%clk 0:02:59]}  O-O {[%clk 0:02:56]} 8. Be2 {[%clk 0:03:00]}  Re8 {[%clk 0:02:56]} 9. O-O {[%clk 0:03:00]}  dxc4 {[%clk 0:02:56]} 10. bxc4 {[%clk 0:03:00]}  e5 {[%clk 0:02:57]} 11. Rd1 {[%clk 0:03:00]}  exd4 {[%clk 0:02:56]} 12. exd4 {[%clk 0:03:00]}  Nf8 {[%clk 0:02:57]} 13. Rb1 {[%clk 0:02:56]}  Ng6 {[%clk 0:02:56]} 14. h3 {[%clk 0:02:56]}  Qc7 {[%clk 0:02:53]} 15. Bg5 {[%clk 0:02:39]}  Nh5 {[%clk 0:02:52]} 16. Bf1 {[%clk 0:02:36]}  Nhf4 {[%clk 0:02:40]} 17. Re1 {[%clk 0:02:29]}  Bd7 {[%clk 0:02:39]} 18. c5 {[%clk 0:02:24]}  Bf8 {[%clk 0:02:38]} 19. Bc4 {[%clk 0:02:18]}  Be6 {[%clk 0:02:31]} 20. Bxe6 {[%clk 0:02:12]}  Nxe6 {[%clk 0:02:28]} 21. Be3 {[%clk 0:02:12]}  Rad8 {[%clk 0:02:28]} 22. Qb3 {[%clk 0:02:11]}  Rd7 {[%clk 0:02:28]} 23. Red1 {[%clk 0:02:09]}  Red8 {[%clk 0:02:25]} 24. g3 {[%clk 0:01:56]}  Be7 {[%clk 0:02:21]} 25. Kg2 {[%clk 0:01:49]}  h6 {[%clk 0:02:07]} 26. h4 {[%clk 0:01:32]}  Bf6 {[%clk 0:02:05]} 27. d5 {[%clk 0:01:26]}  cxd5 {[%clk 0:01:57]} 28. Nxd5 {[%clk 0:01:23]}  Qc6 {[%clk 0:01:57]} 29. Nxf6+ {[%clk 0:01:22]}  gxf6 {[%clk 0:01:56]} 30. Rxd7 {[%clk 0:01:22]}  Rxd7 {[%clk 0:01:56]} 31. Qb5 {[%clk 0:01:18]}  Qd5 {[%clk 0:01:47]} 32. c6 {[%clk 0:01:06]}  Qxb5 {[%clk 0:01:20]} 33. Rxb5 {[%clk 0:01:05]}  bxc6 {[%clk 0:01:20]} 34. Ra5 {[%clk 0:01:04]}  c5 {[%clk 0:01:18]} 35. Bxc5 {[%clk 0:00:56]}  Nxc5 {[%clk 0:00:43]} 36. Rxc5 {[%clk 0:00:57]}  Nf8 {[%clk 0:00:43]} 37. h5 {[%clk 0:00:49]}  Ne6 {[%clk 0:00:43]} 38. Ra5 {[%clk 0:00:50]}  Rc7 {[%clk 0:00:36]} 39. Nh4 {[%clk 0:00:45]}  Ng7 {[%clk 0:00:35]} 40. g4 {[%clk 0:00:43]}  Kf8 {[%clk 0:00:34]} 41. Ra6 {[%clk 0:00:41]}  Ke7 {[%clk 0:00:34]} 42. Kg3 {[%clk 0:00:41]}  Rb7 {[%clk 0:00:33]} 43. f3 {[%clk 0:00:41]}  Rc7 {[%clk 0:00:34]} 44. Kf2 {[%clk 0:00:37]}  Rb7 {[%clk 0:00:34]} 45. Ke3 {[%clk 0:00:37]}  Rc7 {[%clk 0:00:34]} 46. a3 {[%clk 0:00:30]}  Rb7 {[%clk 0:00:33]} 47. Ke4 {[%clk 0:00:30]}  Rc7 {[%clk 0:00:33]} 48. Nf5+ {[%clk 0:00:21]}  Nxf5 {[%clk 0:00:32]} 49. Kxf5 {[%clk 0:00:22]}  Rc5+ {[%clk 0:00:31]} 50. Kf4 {[%clk 0:00:22]}  Rc4+ {[%clk 0:00:30]} 51. Ke3 {[%clk 0:00:22]}  Rc7 {[%clk 0:00:23]} 52. a4 {[%clk 0:00:22]}  Rb7 {[%clk 0:00:17]} 53. a5 {[%clk 0:00:20]}  Rc7 {[%clk 0:00:17]} 54. Ke4 {[%clk 0:00:20]}  Rd7 {[%clk 0:00:18]} 55. Rc6 {[%clk 0:00:19]}  Rb7 {[%clk 0:00:16]} 56. a6 {[%clk 0:00:19]}  Rb4+ {[%clk 0:00:15]} 57. Ke3 {[%clk 0:00:19]}  Ra4 {[%clk 0:00:12]} 58. Rc7+ {[%clk 0:00:19]}  Ke6 {[%clk 0:00:13]} 59. Rxa7 {[%clk 0:00:19]}  f5 {[%clk 0:00:13]} 60. gxf5+ {[%clk 0:00:17]}  Kf6 {[%clk 0:00:11]} 61. Kd3 {[%clk 0:00:12]}  Kg5 {[%clk 0:00:08]} 62. Kc3 {[%clk 0:00:08]}  Kxh5 {[%clk 0:00:08]} 63. Kb3 {[%clk 0:00:08]}  Ra1 {[%clk 0:00:08]} 64. Kb4 {[%clk 0:00:07]}  Kg5 {[%clk 0:00:08]} 65. Kb5 {[%clk 0:00:07]}  Rb1+ {[%clk 0:00:06]} 66. Kc5 {[%clk 0:00:07]}  Ra1 {[%clk 0:00:07]} 67. f4+ {[%clk 0:00:04]}  Kxf4 {[%clk 0:00:06]} 68. f6 {[%clk 0:00:04]}  Kf5 {[%clk 0:00:05]} 69. Kb5 {[%clk 0:00:03]}  Rb1+ {[%clk 0:00:03]} 70. Kc5 {[%clk 0:00:03]}  Ra1 {[%clk 0:00:03]} 71. Kb5 {[%clk 0:00:04]}  Rb1+ {[%clk 0:00:03]} 72. Kc5 {[%clk 0:00:04]}  Ra1 {[%clk 0:00:03]} 1/2-1/2


[Site "https://www.chess.com"]

[Event "Titled Tuesday Blitz June 07 Early 2022"]
[White "Leenhouts, Koen"]
[Black "Preotu, Razvan"]
[WhiteFideId "1008439"]
[BlackFideId "2613280"]
[WhiteElo "2409"]
[BlackElo "2407"]
[Result "0-1"]
[Round "11"]
[TimeControl "180+1"]
[Date "2022.06.07"]
[WhiteClock "0:00:04"]
[BlackClock "0:00:07"]

1. e4 {[%clk 0:03:00]}  c5 {[%clk 0:02:59]} 2. Nf3 {[%clk 0:02:59]}  d6 {[%clk 0:02:59]} 3. c3 {[%clk 0:02:59]}  Nf6 {[%clk 0:02:59]} 4. h3 {[%clk 0:03:00]}  Nc6 {[%clk 0:02:46]} 5. Bd3 {[%clk 0:03:00]}  e5 {[%clk 0:02:45]} 6. O-O {[%clk 0:02:58]}  g5 {[%clk 0:02:23]} 7. Bc4 {[%clk 0:02:38]}  Rg8 {[%clk 0:02:12]} 8. d4 {[%clk 0:02:35]}  Nxe4 {[%clk 0:01:54]} 9. dxe5 {[%clk 0:02:22]}  g4 {[%clk 0:01:28]} 10. Qd5 {[%clk 0:02:10]}  Be6 {[%clk 0:01:27]} 11. Qxe4 {[%clk 0:02:10]}  d5 {[%clk 0:01:27]} 12. Qxh7 {[%clk 0:02:06]}  gxf3 {[%clk 0:00:40]} 13. Qxg8 {[%clk 0:02:02]}  dxc4 {[%clk 0:00:41]} 14. Bh6 {[%clk 0:01:56]}  Qe7 {[%clk 0:00:26]} 15. Qxf8+ {[%clk 0:01:16]}  Qxf8 {[%clk 0:00:27]} 16. Bxf8 {[%clk 0:01:16]}  Kxf8 {[%clk 0:00:27]} 17. Re1 {[%clk 0:01:14]}  Rd8 {[%clk 0:00:22]} 18. Na3 {[%clk 0:01:03]}  Rd2 {[%clk 0:00:21]} 19. Nb5 {[%clk 0:00:56]}  Rxb2 {[%clk 0:00:20]} 20. Nd6 {[%clk 0:00:56]}  b6 {[%clk 0:00:16]} 21. gxf3 {[%clk 0:00:51]}  Ne7 {[%clk 0:00:10]} 22. Re4 {[%clk 0:00:47]}  Nd5 {[%clk 0:00:05]} 23. Nxc4 {[%clk 0:00:45]}  Rc2 {[%clk 0:00:05]} 24. Ne3 {[%clk 0:00:41]}  Rxc3 {[%clk 0:00:04]} 25. Nxd5 {[%clk 0:00:40]}  Bxd5 {[%clk 0:00:05]} 26. Re3 {[%clk 0:00:39]}  Rc2 {[%clk 0:00:04]} 27. a3 {[%clk 0:00:34]}  Ke7 {[%clk 0:00:04]} 28. Rd1 {[%clk 0:00:32]}  Be6 {[%clk 0:00:02]} 29. Kg2 {[%clk 0:00:30]}  c4 {[%clk 0:00:03]} 30. Kg3 {[%clk 0:00:29]}  b5 {[%clk 0:00:03]} 31. h4 {[%clk 0:00:29]}  a5 {[%clk 0:00:03]} 32. h5 {[%clk 0:00:27]}  b4 {[%clk 0:00:03]} 33. h6 {[%clk 0:00:25]}  Bf5 {[%clk 0:00:03]} 34. Rd6 {[%clk 0:00:20]}  b3 {[%clk 0:00:03]} 35. Kf4 {[%clk 0:00:15]}  Bh7 {[%clk 0:00:03]} 36. Rb6 {[%clk 0:00:14]}  b2 {[%clk 0:00:03]} 37. Rb7+ {[%clk 0:00:14]}  Ke6 {[%clk 0:00:03]} 38. Rb6+ {[%clk 0:00:14]}  Ke7 {[%clk 0:00:04]} 39. Rb7+ {[%clk 0:00:13]}  Ke6 {[%clk 0:00:04]} 40. Rb6+ {[%clk 0:00:08]}  Kd5 {[%clk 0:00:05]} 41. e6 {[%clk 0:00:06]}  fxe6 {[%clk 0:00:04]} 42. Re5+ {[%clk 0:00:06]}  Kd4 {[%clk 0:00:03]} 43. Rd6+ {[%clk 0:00:06]}  Kc3 {[%clk 0:00:04]} 44. Re3+ {[%clk 0:00:06]}  Bd3 {[%clk 0:00:04]} 45. h7 {[%clk 0:00:06]}  b1=Q {[%clk 0:00:04]} 46. h8=Q+ {[%clk 0:00:07]}  Kd2 {[%clk 0:00:04]} 47. Rdxd3+ {[%clk 0:00:06]}  cxd3 {[%clk 0:00:05]} 48. Qd4 {[%clk 0:00:05]}  Rc3 {[%clk 0:00:05]} 49. Re4 {[%clk 0:00:04]}  Qh1 {[%clk 0:00:04]} 50. Qe3+ {[%clk 0:00:05]}  Kc2 {[%clk 0:00:05]} 51. Rd4 {[%clk 0:00:03]}  Qh6+ {[%clk 0:00:05]} 52. Ke5 {[%clk 0:00:03]}  Qxe3+ {[%clk 0:00:05]} 53. fxe3 {[%clk 0:00:04]}  d2 {[%clk 0:00:05]} 54. Rxd2+ {[%clk 0:00:03]}  Kxd2 {[%clk 0:00:06]} 55. Kxe6 {[%clk 0:00:04]}  Rxe3+ {[%clk 0:00:06]} 56. Kd5 {[%clk 0:00:04]}  Rxf3 {[%clk 0:00:07]} 0-1


[Site "https://www.chess.com"]

[Event "Titled Tuesday Blitz June 07 Early 2022"]
[White "Narayanan, Srinath"]
[Black "Bharath Subramaniyam H"]
[WhiteFideId "5018420"]
[BlackFideId "46634827"]
[WhiteElo "2472"]
[BlackElo "2242"]
[Result "1-0"]
[Round "11"]
[TimeControl "180+1"]
[Date "2022.06.07"]
[WhiteClock "0:00:13"]
[BlackClock "0:00:08"]

1. Nf3 {[%clk 0:03:00]}  Nf6 {[%clk 0:02:57]} 2. c4 {[%clk 0:03:00]}  c5 {[%clk 0:02:56]} 3. g3 {[%clk 0:02:59]}  e6 {[%clk 0:02:56]} 4. Bg2 {[%clk 0:02:59]}  Nc6 {[%clk 0:02:55]} 5. O-O {[%clk 0:02:59]}  d5 {[%clk 0:02:56]} 6. cxd5 {[%clk 0:02:59]}  exd5 {[%clk 0:02:54]} 7. d4 {[%clk 0:02:59]}  cxd4 {[%clk 0:02:51]} 8. Nxd4 {[%clk 0:03:00]}  Be7 {[%clk 0:02:51]} 9. Nc3 {[%clk 0:03:00]}  O-O {[%clk 0:02:48]} 10. Bg5 {[%clk 0:03:00]}  h6 {[%clk 0:02:44]} 11. Bxf6 {[%clk 0:02:54]}  Bxf6 {[%clk 0:02:45]} 12. Nxc6 {[%clk 0:02:55]}  bxc6 {[%clk 0:02:46]} 13. Rc1 {[%clk 0:02:56]}  Ba6 {[%clk 0:02:40]} 14. b3 {[%clk 0:02:54]}  Re8 {[%clk 0:02:37]} 15. Re1 {[%clk 0:02:54]}  Qa5 {[%clk 0:02:34]} 16. Na4 {[%clk 0:02:52]}  Bb5 {[%clk 0:02:33]} 17. e4 {[%clk 0:02:48]}  Bg5 {[%clk 0:02:03]} 18. f4 {[%clk 0:02:35]}  Be7 {[%clk 0:02:03]} 19. exd5 {[%clk 0:02:32]}  Ba3 {[%clk 0:02:00]} 20. Rb1 {[%clk 0:02:22]}  cxd5 {[%clk 0:01:58]} 21. Re5 {[%clk 0:01:28]}  Rxe5 {[%clk 0:01:53]} 22. fxe5 {[%clk 0:01:29]}  Rd8 {[%clk 0:01:49]} 23. Qd4 {[%clk 0:01:19]}  Qc7 {[%clk 0:01:31]} 24. Kh1 {[%clk 0:01:14]}  Qc2 {[%clk 0:01:29]} 25. Rd1 {[%clk 0:01:08]}  Qxa2 {[%clk 0:01:14]} 26. Nc3 {[%clk 0:01:06]}  Qxb3 {[%clk 0:01:10]} 27. Rb1 {[%clk 0:01:06]}  Bb2 {[%clk 0:01:10]} 28. Nxb5 {[%clk 0:00:47]}  Bxd4 {[%clk 0:01:06]} 29. Rxb3 {[%clk 0:00:48]}  Bxe5 {[%clk 0:01:07]} 30. Rd3 {[%clk 0:00:44]}  a6 {[%clk 0:01:04]} 31. Bxd5 {[%clk 0:00:36]}  axb5 {[%clk 0:00:57]} 32. Bxf7+ {[%clk 0:00:36]}  Kxf7 {[%clk 0:00:58]} 33. Rxd8 {[%clk 0:00:37]}  b4 {[%clk 0:00:59]} 34. Rd7+ {[%clk 0:00:35]}  Ke6 {[%clk 0:00:56]} 35. Rb7 {[%clk 0:00:36]}  Bc3 {[%clk 0:00:56]} 36. Kg2 {[%clk 0:00:35]}  Kd5 {[%clk 0:00:57]} 37. Kf3 {[%clk 0:00:35]}  Kc4 {[%clk 0:00:57]} 38. Ke2 {[%clk 0:00:33]}  b3 {[%clk 0:00:34]} 39. Rc7+ {[%clk 0:00:32]}  Kb4 {[%clk 0:00:35]} 40. Kd3 {[%clk 0:00:28]}  Be5 {[%clk 0:00:31]} 41. Rb7+ {[%clk 0:00:23]}  Ka3 {[%clk 0:00:31]} 42. Kc4 {[%clk 0:00:20]}  Ka2 {[%clk 0:00:16]} 43. Rxb3 {[%clk 0:00:20]}  Bf6 {[%clk 0:00:14]} 44. h4 {[%clk 0:00:15]}  Be5 {[%clk 0:00:13]} 45. h5 {[%clk 0:00:15]}  Bd6 {[%clk 0:00:11]} 46. g4 {[%clk 0:00:14]}  Be5 {[%clk 0:00:10]} 47. Rb7 {[%clk 0:00:12]}  Ka3 {[%clk 0:00:08]} 48. Kd5 {[%clk 0:00:13]}  Bc3 {[%clk 0:00:08]} 49. Ke6 {[%clk 0:00:13]} 1-0


[Site "https://www.chess.com"]

[Event "Titled Tuesday Blitz June 07 Early 2022"]
[White "Pakleza, Zbigniew"]
[Black "Gong, Patrick"]
[WhiteFideId "1119290"]
[BlackFideId "3222500"]
[WhiteElo "2467"]
[BlackElo "2103"]
[Result "1-0"]
[Round "11"]
[TimeControl "180+1"]
[Date "2022.06.07"]
[WhiteClock "0:02:22"]
[BlackClock "0:01:32"]

1. d4 {[%clk 0:03:00]}  Nf6 {[%clk 0:02:59]} 2. Nf3 {[%clk 0:03:00]}  c5 {[%clk 0:02:59]} 3. c3 {[%clk 0:03:00]}  d5 {[%clk 0:02:56]} 4. Bf4 {[%clk 0:03:00]}  e6 {[%clk 0:02:56]} 5. e3 {[%clk 0:03:00]}  Bd6 {[%clk 0:02:55]} 6. Bg3 {[%clk 0:03:00]}  O-O {[%clk 0:02:55]} 7. Nbd2 {[%clk 0:02:59]}  Qc7 {[%clk 0:02:55]} 8. Ne5 {[%clk 0:03:00]}  Nbd7 {[%clk 0:02:48]} 9. f4 {[%clk 0:03:00]}  b6 {[%clk 0:02:48]} 10. Bd3 {[%clk 0:02:59]}  Bb7 {[%clk 0:02:48]} 11. Qf3 {[%clk 0:02:57]}  a5 {[%clk 0:02:25]} 12. a4 {[%clk 0:02:48]}  Ba6 {[%clk 0:02:24]} 13. Bxa6 {[%clk 0:02:45]}  Rxa6 {[%clk 0:02:25]} 14. O-O {[%clk 0:02:45]}  Raa8 {[%clk 0:02:09]} 15. h3 {[%clk 0:02:40]}  Rab8 {[%clk 0:02:09]} 16. Qe2 {[%clk 0:02:28]}  Ne4 {[%clk 0:01:57]} 17. Nxe4 {[%clk 0:02:28]}  dxe4 {[%clk 0:01:58]} 18. Nc4 {[%clk 0:02:29]}  f5 {[%clk 0:01:56]} 19. Bh4 {[%clk 0:02:26]}  Rfc8 {[%clk 0:01:49]} 20. Na3 {[%clk 0:02:22]}  Be7 {[%clk 0:01:32]} 1-0


[Site "https://www.chess.com"]

[Event "Titled Tuesday Blitz June 07 Early 2022"]
[White "Prokofiev, Valentyn"]
[Black "Thavandiran, Shiyam"]
[WhiteFideId "14160161"]
[BlackFideId "2605058"]
[WhiteElo "2142"]
[BlackElo "2357"]
[Result "1-0"]
[Round "11"]
[TimeControl "180+1"]
[Date "2022.06.07"]
[WhiteClock "0:00:57"]
[BlackClock "0:00:02"]

1. d4 {[%clk 0:03:00]}  Nf6 {[%clk 0:02:58]} 2. c4 {[%clk 0:03:01]}  d6 {[%clk 0:02:57]} 3. Nc3 {[%clk 0:02:59]}  Nbd7 {[%clk 0:02:57]} 4. Nf3 {[%clk 0:02:56]}  e5 {[%clk 0:02:57]} 5. e3 {[%clk 0:02:55]}  g6 {[%clk 0:02:56]} 6. b3 {[%clk 0:02:55]}  Bg7 {[%clk 0:02:56]} 7. Bb2 {[%clk 0:02:56]}  O-O {[%clk 0:02:57]} 8. Be2 {[%clk 0:02:56]}  Re8 {[%clk 0:02:49]} 9. O-O {[%clk 0:02:56]}  e4 {[%clk 0:02:43]} 10. Nd2 {[%clk 0:02:55]}  Nf8 {[%clk 0:02:43]} 11. Qc2 {[%clk 0:02:45]}  Bf5 {[%clk 0:02:42]} 12. Rfc1 {[%clk 0:02:46]}  c6 {[%clk 0:02:37]} 13. b4 {[%clk 0:02:45]}  h5 {[%clk 0:02:36]} 14. Qd1 {[%clk 0:02:44]}  h4 {[%clk 0:01:55]} 15. h3 {[%clk 0:02:44]}  N8h7 {[%clk 0:01:53]} 16. Bf1 {[%clk 0:02:43]}  Ng5 {[%clk 0:01:53]} 17. a4 {[%clk 0:02:42]}  Qd7 {[%clk 0:01:51]} 18. b5 {[%clk 0:02:42]}  Bh6 {[%clk 0:01:41]} 19. a5 {[%clk 0:02:06]}  Rac8 {[%clk 0:01:26]} 20. a6 {[%clk 0:02:04]}  bxa6 {[%clk 0:01:21]} 21. Rxa6 {[%clk 0:02:02]}  c5 {[%clk 0:01:02]} 22. dxc5 {[%clk 0:02:00]}  dxc5 {[%clk 0:01:02]} 23. Nb3 {[%clk 0:02:00]}  Qe7 {[%clk 0:00:59]} 24. Qc2 {[%clk 0:01:48]}  Red8 {[%clk 0:00:57]} 25. Rca1 {[%clk 0:01:40]}  Bxh3 {[%clk 0:00:48]} 26. Rxf6 {[%clk 0:01:28]}  Qxf6 {[%clk 0:00:34]} 27. Nxe4 {[%clk 0:01:15]}  Qf5 {[%clk 0:00:33]} 28. Nf6+ {[%clk 0:01:07]}  Kf8 {[%clk 0:00:25]} 29. e4 {[%clk 0:01:07]}  Qf4 {[%clk 0:00:17]} 30. Rxa7 {[%clk 0:01:03]}  Bg7 {[%clk 0:00:06]} 31. Nd5 {[%clk 0:01:00]}  Bxb2 {[%clk 0:00:02]} 32. Nxf4 {[%clk 0:01:00]}  Be5 {[%clk 0:00:02]} 33. Nxh3 {[%clk 0:00:57]}  Nxh3+ {[%clk 0:00:02]} 34. gxh3 {[%clk 0:00:57]} 1-0


[Site "https://www.chess.com"]